bitfinex/quotes_SOLUSD_20241021
["timestamp","ask_amount","ask_price","bid_price","bid_amount"]
[1729550001275,5.9547,167.94,167.86,20.0]
[1729550001576,4.45964383,167.93,167.86,20.0]
[1729550001772,5.9547,167.94,167.86,20.0]
[1729550001976,4.45985322,167.93,167.86,20.0]
[1729550002178,5.9547,167.94,167.86,20.0]
[1729550002475,4.45935691,167.93,167.86,13.962507]
[1729550002665,5.9547,167.94,167.86,13.962507]
[1729550003068,23.776884,167.93,167.86,13.962507]
[1729550011482,23.776884,167.93,167.88,20.0]
[1729550014187,23.776884,167.93,167.85,20.0]
[1729550014365,23.776884,167.94,167.87,20.0]
[1729550021182,23.776884,167.94,167.89,20.0]
[1729550026296,23.776884,167.95,167.89,20.0]
[1729550036198,23.776884,167.95,167.87,20.0]
[1729550037971,23.776884,167.93,167.85,20.0]
[1729550038177,23.776884,167.95,167.85,20.0]
[1729550038696,23.776884,167.93,167.85,20.0]
[1729550054302,23.776884,167.93,167.85,31.1646593]
[1729550062222,23.776884,167.93,167.84,21.4875]
[1729550062223,1.03387178,167.97,167.9,20.0]
[1729550062802,28.9131,168.01,167.91,11.1646593]
[1729550063119,28.9131,168.01,167.92,20.0]
[1729550063312,5.9524,168.0,167.92,20.0]
[1729550064323,23.776884,167.99,167.92,20.0]
[1729550076123,5.952,168.01,167.92,20.0]
[1729550076328,5.9526,168.0,167.92,20.0]
[1729550076905,5.9513,168.03,167.92,20.0]
[1729550077110,20.0,168.04,167.92,20.0]
[1729550077307,20.0,168.02,167.91,11.1646593]
[1729550077508,23.776884,167.96,167.89,22.3631]
[1729550077717,29.730784,167.96,167.89,15.7663]
[1729550079126,29.730784,167.96,167.9,20.0]
[1729550080020,23.776884,167.96,167.85,29.17818079]
[1729550080329,23.776884,167.93,167.85,29.17818079]
[1729550080919,29.731684,167.93,167.85,29.17818079]
[1729550081123,5.9555,167.92,167.85,29.17818079]
[1729550081341,23.776884,167.9,167.85,22.76128079]
[1729550082012,23.776884,167.91,167.85,22.76128079]
[1729550082411,23.776884,167.91,167.86,20.0]
[1729550094242,23.776884,167.91,167.86,19.001455]
[1729550103548,16.1463,167.99,167.86,19.001455]
[1729550103737,16.1463,167.99,167.85,33.92594009]
[1729550103738,20.0,167.98,167.88,20.0]
[1729550104136,5.9545,167.95,167.88,20.0]
[1729550104338,5.9545,167.95,167.86,20.0]
[1729550105031,23.776884,167.94,167.86,20.0]
[1729550106645,29.731384,167.94,167.86,20.0]
[1729550108332,23.776884,167.91,167.85,6.21932085]
[1729550108534,29.732484,167.91,167.85,6.21932085]
[1729550108853,23.776884,167.91,167.81,22.7696]
[1729550109039,23.776884,167.89,167.81,22.7696]
[1729550110866,23.776884,167.89,167.82,20.0]
[1729550113865,15.7254,167.93,167.85,11.1646593]
[1729550114235,21.6803,167.93,167.85,11.1646593]
[1729550114435,21.6803,167.93,167.86,20.0]
[1729550115451,23.776884,167.92,167.84,20.0]
[1729550116756,23.776884,167.92,167.85,11.1646593]
[1729550116937,23.776884,167.92,167.86,20.0]
[1729550118038,5.9544,167.95,167.86,20.0]
[1729550118237,20.0,167.96,167.86,20.0]
[1729550118841,5.9541,167.95,167.86,20.0]
[1729550119343,23.776884,167.94,167.86,20.0]
[1729550120557,23.776884,167.93,167.86,20.0]
[1729550124872,23.776884,167.94,167.86,35.8615]
[1729550128450,5.9545,167.94,167.86,35.8615]
[1729550128963,23.776884,167.93,167.86,35.8615]
[1729550136181,23.776884,167.91,167.83,31.1646593]
[1729550136479,23.776884,167.91,167.86,20.0]
[1729550136661,29.732384,167.91,167.86,20.0]
[1729550136864,29.732384,167.91,167.83,20.0]
[1729550137981,23.776884,167.89,167.83,20.0]
[1729550138173,23.776884,167.89,167.82,6.21941732]
[1729550138762,23.776884,167.89,167.81,22.2592]
[1729550139787,23.776884,167.89,167.82,20.0]
[1729550140085,29.733484,167.89,167.81,22.2592]
[1729550140282,23.776884,167.86,167.81,16.1502]
[1729550140480,29.734284,167.86,167.78,6.22177856]
[1729550141958,29.734284,167.86,167.79,20.0]
[1729550143671,16.5415,167.91,167.79,20.0]
[1729550143867,23.776884,167.89,167.79,20.0]
[1729550144268,23.776884,167.9,167.79,20.0]
[1729550144970,5.9565,167.89,167.79,20.0]
[1729550145192,23.776884,167.88,167.79,20.0]
[1729550146584,29.733484,167.88,167.79,20.0]
[1729550151589,5.9574,167.86,167.79,20.0]
[1729550151791,23.776884,167.85,167.78,20.0]
[1729550156180,23.776884,167.86,167.78,20.0]
[1729550162673,23.776884,167.84,167.78,20.0]
[1729550162992,23.776884,167.84,167.76,20.0]
[1729550172217,23.776884,167.84,167.75,6.22457928]
[1729550172218,23.776884,167.82,167.75,6.22457928]
[1729550172417,5.9595,167.8,167.75,6.22457928]
[1729550172717,23.776884,167.79,167.73,15.0504]
[1729550173103,23.776884,167.8,167.73,15.0504]
[1729550173826,5.9603,167.78,167.69,15.8237]
[1729550174113,23.776884,167.77,167.69,15.8237]
[1729550174925,23.776884,167.77,167.7,20.0]
[1729550182327,23.776884,167.77,167.69,15.8237]
[1729550183752,23.776884,167.77,167.7,20.0]
[1729550193724,29.737384,167.77,167.7,20.0]
[1729550202322,23.776884,167.77,167.7,20.0]
[1729550202729,29.737484,167.77,167.7,20.0]
[1729550205233,5.9615,167.75,167.7,20.0]
[1729550205422,23.776884,167.74,167.7,20.0]
[1729550206222,23.776884,167.74,167.67,6.61]
[1729550206529,23.776884,167.72,167.65,15.1682]
[1729550207028,5.9628,167.71,167.65,15.1682]
[1729550207232,23.776884,167.69,167.65,15.1682]
[1729550207409,23.776884,167.69,167.63,12.88325948]
[1729550209435,23.776884,167.69,167.64,20.0]
[1729550209821,23.776884,167.7,167.64,20.0]
[1729550210945,23.776884,167.71,167.64,20.0]
[1729550211438,6.1007,167.77,167.64,20.0]
[1729550211439,6.0007,167.77,167.66,20.0]
[1729550211621,6.0007,167.77,167.68,20.0]
[1729550211823,5.9609,167.76,167.68,20.0]
[1729550212941,23.776884,167.75,167.68,20.0]
[1729550214124,29.738384,167.75,167.68,20.0]
[1729550214530,23.776884,167.75,167.68,20.0]
[1729550214718,23.776884,167.72,167.68,20.0]
[1729550218840,23.776884,167.73,167.68,20.0]
[1729550224214,23.776884,167.73,167.67,15.0613]
[1729550224540,23.776884,167.73,167.68,20.0]
[1729550225843,5.9616,167.74,167.63,12.88325948]
[1729550225844,5.9629,167.71,167.63,12.88325948]
[1729550226019,5.9629,167.71,167.63,6.21735948]
[1729550226020,20.0,167.71,167.63,6.21735948]
[1729550226219,20.0,167.71,167.62,15.5095]
[1729550226220,29.741084,167.67,167.62,15.5095]
[1729550226633,29.741084,167.67,167.59,0.6161677]
[1729550227222,5.9644,167.66,167.59,0.6161677]
[1729550227428,23.776884,167.65,167.59,0.6161677]
[1729550228944,23.776884,167.65,167.59,20.6161677]
[1729550229953,23.776884,167.66,167.59,20.6161677]
[1729550241962,24.1024018,167.73,167.59,20.6161677]
[1729550241963,24.0024018,167.73,167.61,20.0]
[1729550242152,24.0024018,167.73,167.6,11.1646593]
[1729550242153,5.9623,167.72,167.64,15.4931]
[1729550242355,5.9619,167.74,167.65,20.0]
[1729550242559,5.9619,167.73,167.65,20.0]
[1729550243645,23.776884,167.72,167.65,20.0]
[1729550243850,5.9608,167.76,167.65,20.0]
[1729550244054,5.9623,167.72,167.65,20.0]
[1729550245274,23.776884,167.71,167.65,20.0]
[1729550246675,23.776884,167.72,167.65,20.0]
[1729550251782,23.776884,167.7,167.65,20.0]
[1729550252965,23.776884,167.71,167.65,20.0]
[1729550254549,23.776884,167.69,167.65,20.0]
[1729550254756,29.740384,167.69,167.6,36.2168]
[1729550255656,23.776884,167.69,167.6,16.2168]
[1729550255858,0.1,167.73,167.6,16.2168]
[1729550255859,23.776884,167.67,167.6,16.2168]
[1729550256377,23.776884,167.65,167.6,16.2168]
[1729550257773,23.776884,167.65,167.61,20.0]
[1729550260276,23.776884,167.65,167.6,16.2168]
[1729550260773,23.776884,167.65,167.59,20.6161677]
[1729550260977,23.776884,167.63,167.59,20.6161677]
[1729550261276,29.743384,167.6,167.59,0.6161677]
[1729550270171,23.776884,167.6,167.59,0.6161677]
[1729550271377,29.743384,167.6,167.59,0.6161677]
[1729550271776,23.776884,167.6,167.59,0.6161677]
[1729550272864,29.743384,167.6,167.59,0.6161677]
[1729550277976,23.776884,167.57,167.52,15.5765]
[1729550278571,15.5508,167.65,167.53,6.5291]
[1729550278777,5.9656,167.63,167.53,6.5291]
[1729550278971,5.9654,167.64,167.54,11.1646593]
[1729550279184,5.9654,167.64,167.56,16.4782]
[1729550280272,23.776884,167.63,167.56,16.4782]
[1729550280781,5.9666,167.6,167.56,16.4782]
[1729550280962,23.776884,167.59,167.56,16.4782]
[1729550281171,29.743784,167.59,167.53,6.5291]
[1729550287081,23.776884,167.59,167.53,6.5291]
[1729550288068,23.776884,167.6,167.54,20.0]
[1729550288271,23.776884,167.61,167.54,20.0]
[1729550293287,23.776884,167.59,167.53,6.5291]
[1729550293475,29.743984,167.59,167.53,6.5291]
[1729550294690,29.743984,167.59,167.54,20.0]
[1729550298129,29.743984,167.59,167.53,20.0]
[1729550298399,23.776884,167.59,167.49,6.3681]
[1729550298587,23.776884,167.54,167.48,15.5499]
[1729550299103,23.776884,167.51,167.47,6.22348758]
[1729550299282,29.746884,167.51,167.45,6.3681]
[1729550300199,23.776884,167.51,167.45,6.3681]
[1729550300702,5.9694,167.52,167.46,20.0]
[1729550300703,23.776884,167.52,167.46,20.0]
[1729550301486,1.03922258,167.56,167.46,20.0]
[1729550301487,23.776884,167.53,167.46,20.0]
[1729550314785,23.776884,167.51,167.44,15.5499]
[1729550316220,23.776884,167.51,167.45,20.0]
[1729550317626,29.746884,167.51,167.45,20.0]
[1729550318109,29.746884,167.51,167.42,0.6161677]
[1729550318110,5.9707,167.49,167.42,0.6161677]
[1729550318311,23.776884,167.46,167.42,0.6161677]
[1729550323020,23.776884,167.43,167.42,0.6161677]
[1729550345814,29.749484,167.43,167.42,0.6161677]
[1729550346030,23.776884,167.43,167.42,0.6161677]
[1729550371624,1.03959222,167.49,167.42,0.6161677]
[1729550371823,4.46856432,167.48,167.42,0.6161677]
[1729550372133,5.9707,167.49,167.42,0.6161677]
[1729550373033,23.776884,167.48,167.42,0.6161677]
[1729550384248,23.776884,167.49,167.43,11.1646593]
[1729550384837,23.776884,167.49,167.44,20.0]
[1729550388243,5.9682,167.56,167.47,31.1646593]
[1729550388554,5.9682,167.56,167.49,11.1646593]
[1729550389254,5.9684,167.55,167.49,11.1646593]
[1729550389642,23.776884,167.54,167.49,11.1646593]
[1729550396456,23.776884,167.55,167.5,20.0]
[1729550397465,23.776884,167.55,167.49,20.0]
[1729550400752,29.745384,167.55,167.49,20.0]
[1729550409669,23.776884,167.54,167.49,20.0]
[1729550410570,5.9677,167.57,167.51,20.0]
[1729550411764,23.776884,167.56,167.51,20.0]
[1729550418587,23.276884,167.56,167.51,20.0]
[1729550419367,5.9666,167.6,167.54,11.1646593]
[1729550419670,14.9124,167.65,167.54,11.1646593]
[1729550419671,5.9662,167.61,167.54,11.1646593]
[1729550421995,23.776884,167.6,167.54,11.1646593]
[1729550423670,23.776884,167.61,167.55,20.0]
[1729550433905,23.776884,167.61,167.53,6.5685]
[1729550434095,23.776884,167.61,167.51,15.1456]
[1729550434295,23.776884,167.58,167.51,26.3102593]
[1729550435217,23.776884,167.58,167.52,20.0]
[1729550439712,23.776884,167.58,167.52,31.1646593]
[1729550439891,23.776884,167.59,167.52,31.1646593]
[1729550451351,23.776884,167.6,167.52,31.1646593]
[1729550451506,29.743484,167.6,167.52,31.1646593]
[1729550454203,23.776884,167.6,167.52,31.1646593]
[1729550454404,23.776884,167.58,167.52,20.0]
[1729550454915,23.776884,167.56,167.51,15.1456]
[1729550455505,5.9683,167.55,167.51,15.1456]
[1729550455828,29.744884,167.56,167.51,15.1456]
[1729550456208,29.744884,167.56,167.52,20.0]
[1729550460926,29.744884,167.56,167.51,15.1456]
[1729550461126,5.9684,167.55,167.5,20.0]
[1729550461314,23.776884,167.54,167.5,20.0]
[1729550461520,29.745784,167.54,167.47,15.4217]
[1729550462126,23.776884,167.54,167.47,15.4217]
[1729550462327,5.9694,167.53,167.47,15.4217]
[1729550462528,23.776884,167.52,167.47,15.4217]
[1729550464031,23.776884,167.5,167.47,15.4217]
[1729550472343,23.776884,167.51,167.47,15.4217]
[1729550474936,5.9701,167.5,167.47,15.4217]
[1729550475137,23.776884,167.49,167.47,15.4217]
[1729550477156,23.776884,167.5,167.46,6.22808799]
[1729550477445,23.776884,167.48,167.46,6.22808799]
[1729550477950,6.5627,167.56,167.46,6.22808799]
[1729550478150,23.776884,167.53,167.46,6.22808799]
[1729550478358,5.9684,167.55,167.47,46.7054593]
[1729550479353,5.9687,167.54,167.47,46.7054593]
[1729550479843,23.776884,167.53,167.47,46.7054593]
[1729550483968,29.745984,167.53,167.47,35.5408]
[1729550485777,23.776884,167.53,167.47,35.5408]
[1729550486086,15.655,167.57,167.47,35.5408]
[1729550486087,23.776884,167.54,167.47,35.5408]
[1729550486258,29.745684,167.54,167.47,35.5408]
[1729550487243,15.655,167.57,167.47,46.7054593]
[1729550487438,23.776884,167.54,167.47,46.7054593]
[1729550489043,23.776884,167.54,167.49,11.1646593]
[1729550489246,5.9673,167.58,167.51,11.1646593]
[1729550489560,5.9666,167.6,167.53,11.1646593]
[1729550489941,15.1624,167.61,167.53,11.1646593]
[1729550489942,5.967,167.59,167.53,11.1646593]
[1729550490848,23.776884,167.58,167.53,11.1646593]
[1729550491653,23.776884,167.58,167.52,35.3027]
[1729550491861,23.776884,167.58,167.47,6.2272426]
[1729550491862,23.776884,167.56,167.5,20.0]
[1729550493459,29.744884,167.56,167.5,20.0]
[1729550496458,29.744884,167.56,167.49,20.0]
[1729550512283,23.776884,167.56,167.48,15.2255]
[1729550512458,23.776884,167.51,167.47,6.2272426]
[1729550512870,29.746284,167.52,167.47,6.2272426]
[1729550522483,23.776884,167.5,167.47,6.2272426]
[1729550523189,29.747284,167.5,167.47,6.2272426]
[1729550529487,23.776884,167.48,167.47,6.2272426]
[1729550558117,15.5291,167.56,167.47,6.2272426]
[1729550558299,11.62109741,167.55,167.48,10.96778844]
[1729550558499,5.9691,167.53,167.47,6.2272426]
[1729550558700,4.46965285,167.52,167.47,6.2272426]
[1729550558915,15.5291,167.56,167.47,6.2272426]
[1729550558916,5.9708,167.48,167.47,6.2272426]
[1729550559415,23.776884,167.48,167.47,6.2272426]
[1729550568639,29.747684,167.48,167.47,6.2272426]
[1729550569912,23.776884,167.44,167.42,0.6161677]
[1729550570226,29.749084,167.44,167.42,0.6161677]
[1729550570435,23.776884,167.44,167.42,0.6161677]
[1729550570812,23.776884,167.44,167.28,0.1]
[1729550570813,5.9737,167.4,167.32,16.2048]
[1729550571028,23.776884,167.44,167.32,16.2048]
[1729550571029,23.776884,167.39,167.32,16.2048]
[1729550571234,23.776884,167.36,167.32,16.2048]
[1729550571622,23.776884,167.36,167.32,10.19910909]
[1729550572339,23.776884,167.36,167.3,6.5701]
[1729550572638,23.776884,167.37,167.3,6.5701]
[1729550573936,23.776884,167.37,167.31,20.0]
[1729550574742,23.776884,167.37,167.31,35.6741]
[1729550577710,23.776884,167.37,167.33,20.0]
[1729550577912,15.2609,167.45,167.34,10.96778844]
[1729550578232,15.2609,167.45,167.35,20.0]
[1729550578233,4.42883132,167.44,167.35,20.0]
[1729550578416,4.42883132,167.43,167.35,20.0]
[1729550578617,5.9717,167.46,167.36,10.97613296]
[1729550578915,4.42833512,167.45,167.36,10.97613296]
[1729550579116,4.42833512,167.44,167.36,10.97613296]
[1729550579329,5.9717,167.46,167.36,10.97613296]
[1729550579532,4.42768047,167.45,167.36,10.97613296]
[1729550579739,23.776884,167.43,167.36,10.97613296]
[1729550581547,23.776884,167.44,167.36,10.97613296]
[1729550582054,23.776884,167.44,167.38,10.97613296]
[1729550582349,23.776884,167.45,167.38,10.97613296]
[1729550583330,29.748884,167.45,167.38,10.97613296]
[1729550585255,29.748884,167.45,167.37,26.857372]
[1729550588549,5.9714,167.47,167.39,10.975772]
[1729550588855,14.9252,167.51,167.37,15.8816]
[1729550588856,7.37593986,167.51,167.43,10.975772]
[1729550589056,11.50729805,167.5,167.43,27.211272]
[1729550589252,11.50729805,167.49,167.43,27.211272]
[1729550589438,4.42588386,167.48,167.43,27.211272]
[1729550589640,5.97,167.51,167.43,27.211272]
[1729550589846,11.5085791,167.5,167.43,27.211272]
[1729550590159,23.776884,167.48,167.43,27.211272]
[1729550595671,23.776884,167.48,167.44,20.0]
[1729550607878,23.776884,167.48,167.44,30.975772]
[1729550620493,6.2519,167.56,167.44,30.975772]
[1729550620791,23.776884,167.53,167.44,30.975772]
[1729550620976,5.9691,167.53,167.44,30.975772]
[1729550621175,6.2519,167.56,167.48,10.975772]
[1729550621379,4.44359656,167.55,167.5,10.975772]
[1729550621584,5.9676,167.57,167.5,10.975772]
[1729550621788,11.55724053,167.56,167.5,10.975772]
[1729550622192,4.44509251,167.55,167.5,10.975772]
[1729550622494,5.9676,167.57,167.5,20.0]
[1729550622700,11.5627621,167.56,167.5,20.0]
[1729550622990,28.22410019,167.55,167.5,20.0]
[1729550623171,23.776884,167.56,167.5,20.0]
[1729550623371,23.776884,167.54,167.5,20.0]
[1729550623570,23.776884,167.56,167.5,20.0]
[1729550623780,23.776884,167.54,167.5,20.0]
[1729550631896,23.776884,167.54,167.51,10.975772]
[1729550632204,23.776884,167.58,167.51,10.975772]
[1729550632498,23.776884,167.56,167.51,10.975772]
[1729550632696,23.776884,167.58,167.51,10.975772]
[1729550632893,23.776884,167.56,167.51,10.975772]
[1729550633101,23.776884,167.58,167.51,10.975772]
[1729550633287,23.776884,167.56,167.51,10.975772]
[1729550636088,23.776884,167.56,167.53,10.975772]
[1729550636698,16.1596,167.62,167.55,10.975772]
[1729550636875,4.45030131,167.61,167.55,10.975772]
[1729550637082,22.1255,167.62,167.55,10.975772]
[1729550637291,16.1596,167.62,167.55,10.975772]
[1729550637483,4.44765326,167.61,167.55,10.975772]
[1729550637682,22.1254,167.62,167.55,10.975772]
[1729550637896,4.44753506,167.61,167.55,10.975772]
[1729550638097,23.776884,167.61,167.55,10.975772]
[1729550641602,6.0797,167.64,167.5,20.0]
[1729550641809,30.7559,167.63,167.49,16.3326]
[1729550642106,5.9669,167.6,167.52,10.975772]
[1729550642276,15.8422,167.63,167.54,10.975772]
[1729550642613,5.9651,167.64,167.58,10.975772]
[1729550643083,5.9655,167.63,167.58,10.975772]
[1729550643279,5.9655,167.63,167.56,10.975772]
[1729550643802,23.776884,167.62,167.56,10.975772]
[1729550644211,23.776884,167.63,167.56,10.975772]
[1729550647607,29.742384,167.63,167.56,10.975772]
[1729550649415,23.776884,167.63,167.58,10.975772]
[1729550649585,5.9647,167.66,167.58,10.975772]
[1729550649791,6.585,167.68,167.55,15.4681]
[1729550649792,5.9638,167.68,167.6,10.975772]
[1729550650095,16.5957,167.71,167.62,10.975772]
[1729550650279,5.9633,167.69,167.62,10.975772]
[1729550652090,23.776884,167.68,167.62,10.975772]
[1729550654095,23.776884,167.69,167.62,10.975772]
[1729550655625,6.1504,167.73,167.64,10.975772]
[1729550655797,5.9623,167.72,167.64,10.975772]
[1729550655991,15.5686,167.75,167.66,10.975772]
[1729550656217,21.5301,167.75,167.66,10.975772]
[1729550656389,5.9617,167.74,167.66,10.975772]
[1729550657811,23.776884,167.73,167.66,10.975772]
[1729550662116,29.738784,167.73,167.66,10.975772]
[1729550667933,23.776884,167.74,167.68,10.975772]
[1729550668123,29.738484,167.74,167.66,10.975772]
[1729550671438,16.1635,167.79,167.7,10.975772]
[1729550671633,5.9601,167.78,167.7,10.975772]
[1729550671833,5.9605,167.77,167.7,10.975772]
[1729550672222,5.9605,167.77,167.68,26.982972]
[1729550673039,23.776884,167.76,167.68,26.982972]
[1729550674817,23.776884,167.76,167.69,10.975772]
[1729550676444,23.776884,167.76,167.7,20.0]
[1729550676748,23.776884,167.77,167.71,10.975772]
[1729550677450,23.776884,167.78,167.71,10.975772]
[1729550679045,23.776884,167.79,167.71,10.975772]
[1729550679745,23.776884,167.78,167.71,10.975772]
[1729550680650,23.776884,167.79,167.71,10.975772]
[1729550680948,23.776884,167.79,167.72,20.0]
[1729550682022,23.776884,167.8,167.73,10.975772]
[1729550683045,15.4457,167.83,167.75,10.975772]
[1729550683229,21.4041,167.83,167.75,10.975772]
[1729550683636,5.9584,167.83,167.75,10.975772]
[1729550683834,0.6161677,167.84,167.76,20.0]
[1729550684145,6.5742677,167.84,167.76,20.0]
[1729550684356,23.776884,167.83,167.76,20.0]
[1729550686955,23.776884,167.83,167.77,10.975772]
[1729550688028,0.6161677,167.84,167.77,10.975772]
[1729550689334,23.776884,167.83,167.77,10.975772]
[1729550702075,23.776884,167.83,167.78,10.975772]
[1729550707060,23.776884,167.83,167.77,10.975772]
[1729550712777,23.776884,167.83,167.79,10.975772]
[1729550715473,23.776884,167.83,167.77,10.975772]
[1729550719288,0.6161677,167.84,167.77,10.975772]
[1729550719476,0.6161677,167.84,167.8,20.0]
[1729550719678,0.6161677,167.84,167.81,10.975772]
[1729550720490,0.6161677,167.84,167.82,20.0]
[1729550721174,0.6161677,167.84,167.83,53.053472]
[1729550721364,22.9452,167.97,167.83,53.053472]
[1729550721365,22.9452,167.97,167.84,20.0]
[1729550721565,5.9541,167.95,167.87,20.0]
[1729550722490,22.9452,167.97,167.88,10.975772]
[1729550723189,28.8986,167.97,167.88,10.975772]
[1729550724781,23.776884,167.96,167.88,10.975772]
[1729550725374,23.776884,167.96,167.89,20.0]
[1729550726169,23.776884,167.97,167.89,20.0]
[1729550726369,5.9527,168.0,167.9,10.975772]
[1729550726592,5.9527,168.0,167.91,20.0]
[1729550727080,22.9713677,168.01,167.91,20.0]
[1729550727582,0.6161677,168.01,167.92,10.975772]
[1729550727772,0.6161677,168.01,167.93,20.0]
[1729550728700,0.6161677,168.01,167.95,20.0]
[1729550729393,23.776884,168.0,167.95,20.0]
[1729550730396,23.776884,168.0,167.93,20.0]
[1729550732500,23.776884,168.0,167.9,0.1]
[1729550732809,23.776884,168.0,167.85,16.6446]
[1729550732810,5.9537,167.97,167.85,16.6446]
[1729550733026,23.776884,167.96,167.85,16.7446]
[1729550733323,23.776884,167.97,167.85,27.720372]
[1729550733490,23.776884,167.98,167.85,27.720372]
[1729550733692,29.729984,167.98,167.85,27.720372]
[1729550734314,29.729984,167.98,167.86,20.0]
[1729550736708,23.776884,167.98,167.86,20.0]
[1729550737191,23.776884,167.98,167.88,20.0]
[1729550738809,23.776884,167.98,167.86,20.0]
[1729550739503,23.776884,167.98,167.86,20.1]
[1729550740904,23.776884,167.96,167.86,20.0]
[1729550741916,23.776884,167.97,167.86,20.0]
[1729550743224,23.776884,167.97,167.86,30.975772]
[1729550744921,23.776884,167.97,167.86,20.0]
[1729550745615,23.776884,167.98,167.86,20.0]
[1729550745808,23.776884,167.96,167.86,20.0]
[1729550746792,23.776884,167.97,167.86,20.0]
[1729550760808,23.776884,167.97,167.86,30.975772]
[1729550761011,23.776884,167.98,167.86,30.975772]
[1729550761322,29.729984,167.98,167.86,30.975772]
[1729550762633,23.776884,167.95,167.86,30.975772]
[1729550767253,21.2923,167.99,167.88,10.975772]
[1729550767539,0.6161677,168.01,167.94,10.975772]
[1729550767737,0.6161677,168.01,167.95,20.0]
[1729550768339,0.6161677,168.01,167.96,10.975772]
[1729550768538,0.6161677,168.01,167.97,20.0]
[1729550771037,0.6161677,168.01,167.96,20.0]
[1729550776850,0.6161677,168.01,167.92,20.0]
[1729550777732,0.6161677,168.01,167.92,20.1]
[1729550778253,0.6161677,168.01,167.94,20.0]
[1729550779848,23.776884,168.0,167.91,15.6121]
[1729550780048,29.729384,168.0,167.91,15.6121]
[1729550780844,23.776884,168.0,167.91,15.6121]
[1729550781052,23.776884,168.0,167.92,20.0]
[1729550783262,23.776884,168.0,167.88,6.19372248]
[1729550783436,23.776884,167.94,167.88,6.19372248]
[1729550783840,29.731384,167.94,167.88,6.19372248]
[1729550784042,23.776884,167.95,167.82,26.307472]
[1729550784366,23.776884,167.93,167.86,6.19665521]
[1729550784548,23.776884,167.93,167.82,26.507472]
[1729550784743,23.776884,167.93,167.86,6.19665069]
[1729550785151,23.776884,167.93,167.82,26.507472]
[1729550785347,23.776884,167.93,167.87,20.0]
[1729550785654,23.776884,167.94,167.87,20.0]
[1729550787259,29.731084,167.95,167.87,20.0]
[1729550792676,23.776884,167.95,167.87,20.0]
[1729550792858,23.776884,167.95,167.86,6.19661573]
[1729550793058,23.776884,167.9,167.82,15.3317]
[1729550793268,5.9548,167.93,167.84,6.1974441]
[1729550793588,23.776884,167.92,167.84,6.1974441]
[1729550793781,5.9544,167.95,167.84,6.1974441]
[1729550793979,5.9544,167.95,167.85,10.975772]
[1729550794189,23.776884,167.95,167.86,20.0]
[1729550794488,5.9541,167.95,167.86,20.0]
[1729550795182,28.6126,167.96,167.86,20.0]
[1729550795881,23.776884,167.95,167.86,20.0]
[1729550798171,23.776884,167.89,167.84,6.1974441]
[1729550798483,29.733784,167.88,167.78,15.865]
[1729550798669,29.733784,167.88,167.81,6.19854604]
[1729550798866,29.733784,167.88,167.78,15.865]
[1729550799380,22.6588,167.96,167.82,20.0]
[1729550799682,23.776884,167.92,167.84,20.0]
[1729550800178,5.9549,167.93,167.84,20.0]
[1729550800377,9.51159516,167.92,167.84,20.0]
[1729550800801,3.55639516,167.91,167.84,20.0]
[1729550801000,21.2447,168.0,167.89,30.975772]
[1729550801164,3.55617651,167.99,167.89,30.975772]
[1729550801365,8.00170955,167.98,167.89,30.975772]
[1729550801580,8.00170955,167.97,167.89,30.975772]
[1729550801785,8.00091621,167.96,167.89,30.975772]